[Event "Titled Tuesday Blitz July 25 Early 2023"]
[White "Molenda, Marcin"]
[Black "Khusenkhojaev, Muhammad"]
[WhiteFideId "1173065"]
[BlackFideId "14700247"]
[WhiteElo "2454"]
[BlackElo "2607"]
[Result "1-0"]
[Round "7"]
[TimeControl "180+2"]
[Date "2023.07.25"]
[WhiteClock "0:01:30"]
[BlackClock "0:02:08"]
[Board "99"]

1. e4 {[%clk 0:03:00]}  c5 {[%clk 0:02:59]} 2. c3 {[%clk 0:02:58]}  d5 {[%clk 0:02:58]} 3. exd5 {[%clk 0:02:54]}  Qxd5 {[%clk 0:02:59]} 4. d4 {[%clk 0:02:55]}  Nc6 {[%clk 0:02:58]} 5. Nf3 {[%clk 0:02:54]}  Bf5 {[%clk 0:02:58]} 6. Be3 {[%clk 0:02:45]}  e6 {[%clk 0:02:54]} 7. Nbd2 {[%clk 0:02:39]}  Nf6 {[%clk 0:02:50]} 8. Bc4 {[%clk 0:02:26]}  Qd8 {[%clk 0:02:49]} 9. O-O {[%clk 0:02:22]}  Ng4 {[%clk 0:02:47]} 10. Bf4 {[%clk 0:02:21]}  cxd4 {[%clk 0:02:46]} 11. Nxd4 {[%clk 0:02:20]}  Bd6 {[%clk 0:02:45]} 12. Nxc6 {[%clk 0:02:12]}  bxc6 {[%clk 0:02:44]} 13. Bxd6 {[%clk 0:02:13]}  Qxd6 {[%clk 0:02:43]} 14. Nf3 {[%clk 0:02:14]}  Qxd1 {[%clk 0:02:37]} 15. Rfxd1 {[%clk 0:02:15]}  c5 {[%clk 0:02:33]} 16. h3 {[%clk 0:02:13]}  Nf6 {[%clk 0:02:31]} 17. Ne5 {[%clk 0:02:06]}  Be4 {[%clk 0:02:28]} 18. f3 {[%clk 0:01:59]}  Bb7 {[%clk 0:02:23]} 19. Rd6 {[%clk 0:01:58]}  Ke7 {[%clk 0:02:15]} 20. Rad1 {[%clk 0:01:58]}  Nd5 {[%clk 0:02:11]} 21. Rd7+ {[%clk 0:01:41]}  Kf6 {[%clk 0:02:10]} 22. Ng4+ {[%clk 0:01:29]}  Kg5 {[%clk 0:02:10]} 23. Rxb7 {[%clk 0:01:30]}  Ne3 {[%clk 0:02:08]} 24. Nxe3 {[%clk 0:01:30]} 1-0


[Site "https://www.chess.com"]

[Event "Titled Tuesday Blitz July 25 Early 2023"]
[White "Ahmad, Khagan"]
[Black "Bendayan Claros, Aaron"]
[WhiteFideId "13431552"]
[BlackFideId "3803392"]
[WhiteElo "2590"]
[BlackElo "2443"]
[Result "1-0"]
[Round "7"]
[TimeControl "180+2"]
[Date "2023.07.25"]
[WhiteClock "0:00:18"]
[BlackClock "0:00:00"]
[Board "102"]

1. c4 {[%clk 0:03:00]}  e6 {[%clk 0:02:54]} 2. Nc3 {[%clk 0:02:53]}  d5 {[%clk 0:02:55]} 3. d4 {[%clk 0:02:52]}  c6 {[%clk 0:02:54]} 4. e4 {[%clk 0:02:52]}  dxe4 {[%clk 0:02:55]} 5. Nxe4 {[%clk 0:02:52]}  Bb4+ {[%clk 0:02:55]} 6. Bd2 {[%clk 0:02:52]}  Bxd2+ {[%clk 0:02:55]} 7. Qxd2 {[%clk 0:02:52]}  Nf6 {[%clk 0:02:55]} 8. Nxf6+ {[%clk 0:02:51]}  Qxf6 {[%clk 0:02:56]} 9. Nf3 {[%clk 0:02:51]}  O-O {[%clk 0:02:56]} 10. Bd3 {[%clk 0:02:49]}  c5 {[%clk 0:02:54]} 11. O-O {[%clk 0:02:42]}  cxd4 {[%clk 0:02:51]} 12. Nxd4 {[%clk 0:02:41]}  e5 {[%clk 0:02:47]} 13. Nf3 {[%clk 0:02:34]}  Nc6 {[%clk 0:02:41]} 14. Be4 {[%clk 0:02:24]}  Bf5 {[%clk 0:02:39]} 15. Bxc6 {[%clk 0:02:05]}  bxc6 {[%clk 0:02:29]} 16. Qc3 {[%clk 0:02:04]}  Rfe8 {[%clk 0:02:17]} 17. Rfe1 {[%clk 0:02:01]}  Re6 {[%clk 0:01:59]} 18. Rxe5 {[%clk 0:01:56]}  Rae8 {[%clk 0:01:56]} 19. Rxe6 {[%clk 0:01:34]}  Qxe6 {[%clk 0:01:54]} 20. Re1 {[%clk 0:01:32]}  Qd7 {[%clk 0:01:54]} 21. Rxe8+ {[%clk 0:01:31]}  Qxe8 {[%clk 0:01:55]} 22. h3 {[%clk 0:01:31]}  g6 {[%clk 0:01:46]} 23. Qe5 {[%clk 0:01:29]}  Qd7 {[%clk 0:01:44]} 24. Nd4 {[%clk 0:01:25]}  Bb1 {[%clk 0:01:40]} 25. a3 {[%clk 0:01:22]}  Bd3 {[%clk 0:01:39]} 26. c5 {[%clk 0:01:20]}  Qb7 {[%clk 0:01:33]} 27. b4 {[%clk 0:01:18]}  a5 {[%clk 0:01:27]} 28. Qe8+ {[%clk 0:01:16]}  Kg7 {[%clk 0:01:27]} 29. Nxc6 {[%clk 0:01:09]}  axb4 {[%clk 0:01:26]} 30. axb4 {[%clk 0:01:08]}  h5 {[%clk 0:00:55]} 31. Nd8 {[%clk 0:01:01]}  Qd5 {[%clk 0:00:51]} 32. c6 {[%clk 0:00:55]}  Be4 {[%clk 0:00:41]} 33. c7 {[%clk 0:00:19]}  Qd1+ {[%clk 0:00:14]} 34. Kh2 {[%clk 0:00:18]}  Qd6+ {[%clk 0:00:13]} 35. g3 {[%clk 0:00:19]}  Qxc7 {[%clk 0:00:09]} 36. Qxe4 {[%clk 0:00:19]}  Qxd8 {[%clk 0:00:09]} 37. Qe5+ {[%clk 0:00:19]}  Kh7 {[%clk 0:00:09]} 38. b5 {[%clk 0:00:19]}  Qb6 {[%clk 0:00:08]} 39. Kg2 {[%clk 0:00:18]}  Qb7+ {[%clk 0:00:08]} 40. Kg1 {[%clk 0:00:18]}  Qb6 {[%clk 0:00:08]} 41. Qd5 {[%clk 0:00:18]}  Qc7 {[%clk 0:00:03]} 42. Qc6 {[%clk 0:00:18]}  Qe7 {[%clk 0:00:02]} 43. b6 {[%clk 0:00:18]}  Qe1+ {[%clk 0:00:02]} 44. Kg2 {[%clk 0:00:18]}  Qe4+ {[%clk 0:00:00]} 45. Qxe4 {[%clk 0:00:18]} 1-0


[Site "https://www.chess.com"]

[Event "Titled Tuesday Blitz July 25 Early 2023"]
[White "Manukian, Artak"]
[Black "Veiga, Jose Francisco R P Neves"]
[WhiteFideId "13301373"]
[BlackFideId "1930087"]
[WhiteElo "2439"]
[BlackElo "2589"]
[Result "1-0"]
[Round "7"]
[TimeControl "180+2"]
[Date "2023.07.25"]
[WhiteClock "0:00:45"]
[BlackClock "0:01:02"]
[Board "103"]

1. e4 {[%clk 0:03:00]}  Nc6 {[%clk 0:03:00]} 2. Nf3 {[%clk 0:02:58]}  d6 {[%clk 0:02:59]} 3. d4 {[%clk 0:02:58]}  Nf6 {[%clk 0:03:00]} 4. d5 {[%clk 0:02:57]}  Nb8 {[%clk 0:03:00]} 5. Nc3 {[%clk 0:02:54]}  g6 {[%clk 0:03:00]} 6. Bg5 {[%clk 0:02:51]}  Bg7 {[%clk 0:03:01]} 7. Qd2 {[%clk 0:02:46]}  a6 {[%clk 0:03:00]} 8. a4 {[%clk 0:02:39]}  Bg4 {[%clk 0:02:54]} 9. Bh6 {[%clk 0:02:38]}  Bxh6 {[%clk 0:02:51]} 10. Qxh6 {[%clk 0:02:37]}  Nbd7 {[%clk 0:02:52]} 11. Nd4 {[%clk 0:02:29]}  e5 {[%clk 0:02:15]} 12. dxe6 {[%clk 0:02:27]}  Bxe6 {[%clk 0:02:16]} 13. Nxe6 {[%clk 0:02:06]}  fxe6 {[%clk 0:02:17]} 14. Bc4 {[%clk 0:02:05]}  Qe7 {[%clk 0:02:16]} 15. O-O {[%clk 0:02:03]}  Ne5 {[%clk 0:02:16]} 16. Be2 {[%clk 0:02:01]}  Nf7 {[%clk 0:02:11]} 17. Qe3 {[%clk 0:01:59]}  O-O {[%clk 0:02:11]} 18. f4 {[%clk 0:01:54]}  Rae8 {[%clk 0:02:06]} 19. Rae1 {[%clk 0:01:51]}  d5 {[%clk 0:01:57]} 20. exd5 {[%clk 0:01:47]}  exd5 {[%clk 0:01:57]} 21. Qxe7 {[%clk 0:01:46]}  Rxe7 {[%clk 0:01:58]} 22. Bf3 {[%clk 0:01:46]}  Rxe1 {[%clk 0:01:50]} 23. Rxe1 {[%clk 0:01:47]}  c6 {[%clk 0:01:50]} 24. Re7 {[%clk 0:01:36]}  Nd6 {[%clk 0:01:50]} 25. g4 {[%clk 0:01:32]}  Rf7 {[%clk 0:01:49]} 26. Rxf7 {[%clk 0:01:28]}  Kxf7 {[%clk 0:01:49]} 27. g5 {[%clk 0:01:29]}  Nd7 {[%clk 0:01:43]} 28. b4 {[%clk 0:01:16]}  b5 {[%clk 0:01:39]} 29. axb5 {[%clk 0:01:12]}  axb5 {[%clk 0:01:39]} 30. Kf2 {[%clk 0:01:09]}  Nf5 {[%clk 0:01:37]} 31. Ne2 {[%clk 0:01:07]}  h5 {[%clk 0:01:21]} 32. gxh6 {[%clk 0:01:00]}  Nxh6 {[%clk 0:01:21]} 33. Nd4 {[%clk 0:00:59]}  Nb8 {[%clk 0:01:19]} 34. Nxc6 {[%clk 0:00:58]}  Nxc6 {[%clk 0:01:14]} 35. Bxd5+ {[%clk 0:00:58]}  Kf6 {[%clk 0:01:13]} 36. Bxc6 {[%clk 0:00:59]}  Ng4+ {[%clk 0:01:12]} 37. Ke2 {[%clk 0:00:52]}  Nxh2 {[%clk 0:01:07]} 38. Bxb5 {[%clk 0:00:52]}  Kf5 {[%clk 0:01:04]} 39. Bd3+ {[%clk 0:00:52]}  Kxf4 {[%clk 0:01:04]} 40. Bxg6 {[%clk 0:00:52]}  Ke5 {[%clk 0:01:02]} 41. Bh5 {[%clk 0:00:45]} 1-0


[Site "https://www.chess.com"]

[Event "Titled Tuesday Blitz July 25 Early 2023"]
[White "Zheenbekov, Nurgazy"]
[Black "Al-Tarboush, Ward"]
[WhiteFideId "13800485"]
[BlackFideId "7601450"]
[WhiteElo "2437"]
[BlackElo "2580"]
[Result "0-1"]
[Round "7"]
[TimeControl "180+2"]
[Date "2023.07.25"]
[WhiteClock "0:00:00"]
[BlackClock "0:00:50"]
[Board "104"]

1. Nf3 {[%clk 0:03:00]}  d5 {[%clk 0:02:58]} 2. g3 {[%clk 0:03:00]}  Nf6 {[%clk 0:02:58]} 3. Bg2 {[%clk 0:03:00]}  c6 {[%clk 0:02:59]} 4. O-O {[%clk 0:03:00]}  Bf5 {[%clk 0:03:00]} 5. d3 {[%clk 0:03:00]}  e6 {[%clk 0:03:00]} 6. Nbd2 {[%clk 0:03:00]}  h6 {[%clk 0:02:59]} 7. Re1 {[%clk 0:03:01]}  Bg6 {[%clk 0:02:59]} 8. e4 {[%clk 0:03:01]}  Be7 {[%clk 0:02:59]} 9. e5 {[%clk 0:02:58]}  Nfd7 {[%clk 0:02:59]} 10. h4 {[%clk 0:02:51]}  c5 {[%clk 0:02:58]} 11. b3 {[%clk 0:02:50]}  Nc6 {[%clk 0:02:58]} 12. Nf1 {[%clk 0:02:45]}  Qc7 {[%clk 0:02:57]} 13. Bf4 {[%clk 0:02:44]}  Bh5 {[%clk 0:02:57]} 14. N1h2 {[%clk 0:02:42]}  g5 {[%clk 0:02:48]} 15. hxg5 {[%clk 0:02:36]}  hxg5 {[%clk 0:02:49]} 16. Bd2 {[%clk 0:02:35]}  g4 {[%clk 0:02:45]} 17. Ng5 {[%clk 0:02:31]}  Ndxe5 {[%clk 0:02:42]} 18. Bf4 {[%clk 0:02:26]}  Bxg5 {[%clk 0:02:29]} 19. Bxg5 {[%clk 0:02:25]}  Nd4 {[%clk 0:02:27]} 20. Bf4 {[%clk 0:02:23]}  f6 {[%clk 0:02:20]} 21. c3 {[%clk 0:02:23]}  Ndf3+ {[%clk 0:02:17]} 22. Bxf3 {[%clk 0:02:23]}  gxf3 {[%clk 0:02:15]} 23. d4 {[%clk 0:02:22]}  O-O-O {[%clk 0:02:07]} 24. dxe5 {[%clk 0:02:20]}  Rdg8 {[%clk 0:02:06]} 25. Qd2 {[%clk 0:02:00]}  Qh7 {[%clk 0:02:05]} 26. Qe3 {[%clk 0:01:42]}  Bg6 {[%clk 0:01:38]} 27. Qxc5+ {[%clk 0:01:40]}  Kb8 {[%clk 0:01:37]} 28. exf6+ {[%clk 0:01:35]}  Ka8 {[%clk 0:01:36]} 29. g4 {[%clk 0:01:35]}  Bf5 {[%clk 0:01:30]} 30. Re5 {[%clk 0:01:02]}  Rxg4+ {[%clk 0:01:28]} 31. Kf1 {[%clk 0:01:01]}  Rxf4 {[%clk 0:01:15]} 32. Ke1 {[%clk 0:00:56]}  Qxh2 {[%clk 0:01:12]} 33. f7 {[%clk 0:00:56]}  Qh1+ {[%clk 0:00:48]} 34. Kd2 {[%clk 0:00:55]}  Qh6 {[%clk 0:00:49]} 35. Re3 {[%clk 0:00:37]}  Qf8 {[%clk 0:00:50]} 36. Qc7 {[%clk 0:00:00]}  d4 {[%clk 0:00:50]} 0-1


[Site "https://www.chess.com"]

[Event "Titled Tuesday Blitz July 25 Early 2023"]
[White "Yurovskykh, Oleksandr"]
[Black "Balla, Tamas-Kristof"]
[WhiteFideId "14134020"]
[BlackFideId "1208497"]
[WhiteElo "2559"]
[BlackElo "2422"]
[Result "1/2-1/2"]
[Round "7"]
[TimeControl "180+2"]
[Date "2023.07.25"]
[WhiteClock "0:00:03"]
[BlackClock "0:00:04"]
[Board "109"]

1. c4 {[%clk 0:03:00]}  c5 {[%clk 0:03:00]} 2. g3 {[%clk 0:03:00]}  Nc6 {[%clk 0:03:00]} 3. Bg2 {[%clk 0:03:00]}  g6 {[%clk 0:03:00]} 4. Nc3 {[%clk 0:02:59]}  Bg7 {[%clk 0:03:01]} 5. Nf3 {[%clk 0:02:57]}  e6 {[%clk 0:02:58]} 6. h4 {[%clk 0:02:55]}  h5 {[%clk 0:02:54]} 7. d3 {[%clk 0:02:43]}  Nge7 {[%clk 0:02:43]} 8. Rb1 {[%clk 0:02:37]}  a5 {[%clk 0:02:42]} 9. O-O {[%clk 0:02:34]}  O-O {[%clk 0:02:42]} 10. Bd2 {[%clk 0:02:31]}  d6 {[%clk 0:02:41]} 11. Ne1 {[%clk 0:02:18]}  b6 {[%clk 0:02:35]} 12. Nc2 {[%clk 0:02:17]}  Bb7 {[%clk 0:02:35]} 13. a3 {[%clk 0:02:17]}  Qd7 {[%clk 0:02:34]} 14. b4 {[%clk 0:02:16]}  axb4 {[%clk 0:02:34]} 15. axb4 {[%clk 0:02:17]}  Nd4 {[%clk 0:02:24]} 16. Bxb7 {[%clk 0:02:12]}  Qxb7 {[%clk 0:02:25]} 17. Nxd4 {[%clk 0:02:10]}  cxd4 {[%clk 0:02:21]} 18. Ne4 {[%clk 0:02:01]}  d5 {[%clk 0:02:17]} 19. cxd5 {[%clk 0:02:01]}  Nxd5 {[%clk 0:02:14]} 20. Qb3 {[%clk 0:01:54]}  Qd7 {[%clk 0:01:38]} 21. Rfc1 {[%clk 0:01:45]}  Rfc8 {[%clk 0:01:38]} 22. Kg2 {[%clk 0:01:27]}  Nc3 {[%clk 0:01:30]} 23. Nxc3 {[%clk 0:01:15]}  dxc3 {[%clk 0:01:31]} 24. Be1 {[%clk 0:00:31]}  Qc6+ {[%clk 0:01:28]} 25. f3 {[%clk 0:00:28]}  c2 {[%clk 0:01:28]} 26. Rb2 {[%clk 0:00:09]}  Bxb2 {[%clk 0:01:09]} 27. Qxb2 {[%clk 0:00:10]}  Ra7 {[%clk 0:01:02]} 28. Bf2 {[%clk 0:00:10]}  Rac7 {[%clk 0:01:02]} 29. Bd4 {[%clk 0:00:10]}  Kh7 {[%clk 0:00:51]} 30. Kf2 {[%clk 0:00:08]}  Qd5 {[%clk 0:00:40]} 31. Bf6 {[%clk 0:00:04]}  b5 {[%clk 0:00:32]} 32. Be5 {[%clk 0:00:04]}  Rc6 {[%clk 0:00:31]} 33. Bf6 {[%clk 0:00:05]}  Qf5 {[%clk 0:00:21]} 34. Bd4 {[%clk 0:00:05]}  Qh3 {[%clk 0:00:21]} 35. Be5 {[%clk 0:00:05]}  Qh2+ {[%clk 0:00:22]} 36. Ke3 {[%clk 0:00:06]}  Qh3 {[%clk 0:00:20]} 37. Kd2 {[%clk 0:00:05]}  Qf5 {[%clk 0:00:20]} 38. Bf4 {[%clk 0:00:05]}  e5 {[%clk 0:00:20]} 39. Be3 {[%clk 0:00:05]}  f6 {[%clk 0:00:16]} 40. Qb3 {[%clk 0:00:05]}  Qd7 {[%clk 0:00:13]} 41. Qa2 {[%clk 0:00:05]}  f5 {[%clk 0:00:09]} 42. Bc5 {[%clk 0:00:05]}  e4 {[%clk 0:00:09]} 43. Qxc2 {[%clk 0:00:05]}  exd3 {[%clk 0:00:10]} 44. Qxd3 {[%clk 0:00:05]}  Qc7 {[%clk 0:00:10]} 45. Kc2 {[%clk 0:00:05]}  Rd8 {[%clk 0:00:10]} 46. Qc3 {[%clk 0:00:05]}  Rc8 {[%clk 0:00:09]} 47. Rd1 {[%clk 0:00:05]}  Qf7 {[%clk 0:00:06]} 48. Qb3 {[%clk 0:00:04]}  Qg7 {[%clk 0:00:04]} 49. Qc3 {[%clk 0:00:04]}  Qf7 {[%clk 0:00:03]} 50. Qb3 {[%clk 0:00:03]}  Qg7 {[%clk 0:00:03]} 51. Qc3 {[%clk 0:00:03]}  Qf7 {[%clk 0:00:04]} 1/2-1/2


[Site "https://www.chess.com"]

[Event "Titled Tuesday Blitz July 25 Early 2023"]
[White "Kochiev, Ivan"]
[Black "Alvarado Diaz, Alejandro"]
[WhiteFideId "2917890"]
[BlackFideId "2276119"]
[WhiteElo "2552"]
[BlackElo "2422"]
[Result "0-1"]
[Round "7"]
[TimeControl "180+2"]
[Date "2023.07.25"]
[WhiteClock "0:00:00"]
[BlackClock "0:00:08"]
[Board "110"]

1. e4 {[%clk 0:03:00]}  c5 {[%clk 0:02:59]} 2. Nf3 {[%clk 0:03:01]}  d6 {[%clk 0:02:59]} 3. d4 {[%clk 0:03:01]}  cxd4 {[%clk 0:03:00]} 4. Nxd4 {[%clk 0:03:02]}  Nf6 {[%clk 0:03:00]} 5. f3 {[%clk 0:03:03]}  e5 {[%clk 0:02:42]} 6. Nb3 {[%clk 0:03:01]}  Be6 {[%clk 0:02:39]} 7. c4 {[%clk 0:03:01]}  Nbd7 {[%clk 0:02:37]} 8. Nc3 {[%clk 0:03:01]}  Rc8 {[%clk 0:02:26]} 9. Nd5 {[%clk 0:03:01]}  Nb6 {[%clk 0:01:50]} 10. Nxb6 {[%clk 0:02:08]}  Qxb6 {[%clk 0:01:50]} 11. Bd2 {[%clk 0:02:09]}  Be7 {[%clk 0:01:44]} 12. Rc1 {[%clk 0:02:02]}  O-O {[%clk 0:01:41]} 13. Bd3 {[%clk 0:02:02]}  Nd7 {[%clk 0:01:31]} 14. Qe2 {[%clk 0:02:00]}  Nc5 {[%clk 0:01:12]} 15. Nxc5 {[%clk 0:01:59]}  Qxc5 {[%clk 0:01:02]} 16. Be3 {[%clk 0:01:55]}  Qa5+ {[%clk 0:01:03]} 17. Kf2 {[%clk 0:01:53]}  a6 {[%clk 0:00:56]} 18. b3 {[%clk 0:01:53]}  Bd8 {[%clk 0:00:44]} 19. Rhd1 {[%clk 0:01:34]}  Bb6 {[%clk 0:00:45]} 20. Bb1 {[%clk 0:01:27]}  Bxe3+ {[%clk 0:00:44]} 21. Qxe3 {[%clk 0:01:27]}  Qc5 {[%clk 0:00:38]} 22. Rc2 {[%clk 0:01:08]}  f5 {[%clk 0:00:34]} 23. Rcd2 {[%clk 0:01:05]}  f4 {[%clk 0:00:31]} 24. Qxc5 {[%clk 0:00:57]}  dxc5 {[%clk 0:00:32]} 25. Rd6 {[%clk 0:00:58]}  Kf7 {[%clk 0:00:30]} 26. a4 {[%clk 0:00:33]}  Ke7 {[%clk 0:00:26]} 27. a5 {[%clk 0:00:32]}  Rfd8 {[%clk 0:00:23]} 28. Rxd8 {[%clk 0:00:31]}  Rxd8 {[%clk 0:00:24]} 29. Rxd8 {[%clk 0:00:32]}  Kxd8 {[%clk 0:00:24]} 30. Ke2 {[%clk 0:00:27]}  Kc7 {[%clk 0:00:24]} 31. Kd2 {[%clk 0:00:26]}  g5 {[%clk 0:00:21]} 32. Bd3 {[%clk 0:00:15]}  b6 {[%clk 0:00:20]} 33. axb6+ {[%clk 0:00:15]}  Kxb6 {[%clk 0:00:21]} 34. Be2 {[%clk 0:00:14]}  Ka5 {[%clk 0:00:19]} 35. Kc3 {[%clk 0:00:15]}  h5 {[%clk 0:00:18]} 36. h3 {[%clk 0:00:15]}  Kb6 {[%clk 0:00:15]} 37. b4 {[%clk 0:00:15]}  cxb4+ {[%clk 0:00:13]} 38. Kxb4 {[%clk 0:00:16]}  a5+ {[%clk 0:00:13]} 39. Ka4 {[%clk 0:00:07]}  Bd7+ {[%clk 0:00:14]} 40. Kb3 {[%clk 0:00:05]}  Kc5 {[%clk 0:00:14]} 41. Bd1 {[%clk 0:00:02]}  Be6 {[%clk 0:00:12]} 42. Kc3 {[%clk 0:00:03]}  Bxc4 {[%clk 0:00:10]} 43. Ba4 {[%clk 0:00:02]}  Bf1 {[%clk 0:00:10]} 44. Be8 {[%clk 0:00:02]}  h4 {[%clk 0:00:09]} 45. Bh5 {[%clk 0:00:02]}  Bxg2 {[%clk 0:00:10]} 46. Bg4 {[%clk 0:00:00]}  a4 {[%clk 0:00:08]} 0-1


[Site "https://www.chess.com"]

[Event "Titled Tuesday Blitz July 25 Early 2023"]
[White "vishwa_vijeta"]
[Black "Zacurdajev, Dmitry"]
[BlackFideId "4196309"]
[WhiteElo "2546"]
[BlackElo "2420"]
[Result "1-0"]
[Round "7"]
[TimeControl "180+2"]
[Date "2023.07.25"]
[WhiteClock "0:01:31"]
[BlackClock "0:00:14"]
[Board "111"]

1. e4 {[%clk 0:03:00]}  c6 {[%clk 0:03:00]} 2. d4 {[%clk 0:03:00]}  d5 {[%clk 0:03:01]} 3. Nd2 {[%clk 0:03:00]}  dxe4 {[%clk 0:03:01]} 4. Nxe4 {[%clk 0:03:01]}  Nf6 {[%clk 0:03:01]} 5. Nxf6+ {[%clk 0:03:00]}  exf6 {[%clk 0:03:02]} 6. c3 {[%clk 0:03:00]}  Bd6 {[%clk 0:03:03]} 7. Nf3 {[%clk 0:03:00]}  O-O {[%clk 0:03:03]} 8. Be2 {[%clk 0:03:00]}  Re8 {[%clk 0:03:04]} 9. O-O {[%clk 0:03:00]}  Bg4 {[%clk 0:02:58]} 10. h3 {[%clk 0:03:00]}  Bh5 {[%clk 0:02:58]} 11. Be3 {[%clk 0:03:00]}  Nd7 {[%clk 0:02:58]} 12. Re1 {[%clk 0:02:58]}  Nf8 {[%clk 0:02:58]} 13. Qd2 {[%clk 0:02:57]}  Qd7 {[%clk 0:02:56]} 14. Rad1 {[%clk 0:02:57]}  Rad8 {[%clk 0:02:55]} 15. d5 {[%clk 0:02:56]}  Bb8 {[%clk 0:02:51]} 16. dxc6 {[%clk 0:02:50]}  bxc6 {[%clk 0:02:30]} 17. Qxd7 {[%clk 0:02:47]}  Rxd7 {[%clk 0:02:30]} 18. Rxd7 {[%clk 0:02:43]}  Nxd7 {[%clk 0:02:31]} 19. Nd4 {[%clk 0:02:43]}  Bxe2 {[%clk 0:02:30]} 20. Rxe2 {[%clk 0:02:43]}  c5 {[%clk 0:02:22]} 21. Nc6 {[%clk 0:02:38]}  a6 {[%clk 0:02:03]} 22. Rd2 {[%clk 0:02:35]}  Ne5 {[%clk 0:01:36]} 23. Nxb8 {[%clk 0:02:30]}  Rxb8 {[%clk 0:01:37]} 24. Bxc5 {[%clk 0:02:30]}  Nc4 {[%clk 0:01:37]} 25. Re2 {[%clk 0:02:25]}  g5 {[%clk 0:01:24]} 26. b3 {[%clk 0:02:24]}  Ne5 {[%clk 0:01:24]} 27. Bd6 {[%clk 0:02:23]}  Re8 {[%clk 0:01:25]} 28. c4 {[%clk 0:02:23]}  Nf3+ {[%clk 0:01:04]} 29. Kf1 {[%clk 0:02:22]}  Rd8 {[%clk 0:01:02]} 30. c5 {[%clk 0:02:16]}  Nd4 {[%clk 0:01:02]} 31. Re1 {[%clk 0:02:13]}  Kg7 {[%clk 0:00:55]} 32. Rc1 {[%clk 0:02:10]}  Nc6 {[%clk 0:00:55]} 33. Ke2 {[%clk 0:02:09]}  Re8+ {[%clk 0:00:55]} 34. Kd3 {[%clk 0:02:08]}  f5 {[%clk 0:00:49]} 35. Kc4 {[%clk 0:02:07]}  Re2 {[%clk 0:00:45]} 36. Kd5 {[%clk 0:02:04]}  Nb4+ {[%clk 0:00:45]} 37. Kc4 {[%clk 0:02:04]}  Nc6 {[%clk 0:00:41]} 38. a4 {[%clk 0:01:59]}  Kf6 {[%clk 0:00:32]} 39. b4 {[%clk 0:01:57]}  Re4+ {[%clk 0:00:32]} 40. Kb3 {[%clk 0:01:36]}  Rxb4+ {[%clk 0:00:32]} 41. Ka3 {[%clk 0:01:36]}  Rd4 {[%clk 0:00:15]} 42. Rb1 {[%clk 0:01:33]}  Rd3+ {[%clk 0:00:15]} 43. Rb3 {[%clk 0:01:31]}  a5 {[%clk 0:00:14]} 44. Rxd3 {[%clk 0:01:31]} 1-0


[Site "https://www.chess.com"]

[Event "Titled Tuesday Blitz July 25 Early 2023"]
[White "Marn, Jan"]
[Black "Souleidis, Georgios"]
[WhiteFideId "14619245"]
[BlackFideId "4206827"]
[WhiteElo "2414"]
[BlackElo "2544"]
[Result "1-0"]
[Round "7"]
[TimeControl "180+2"]
[Date "2023.07.25"]
[WhiteClock "0:00:03"]
[BlackClock "0:00:05"]
[Board "112"]

1. f4 {[%clk 0:03:00]}  d5 {[%clk 0:02:59]} 2. Nf3 {[%clk 0:03:01]}  Nf6 {[%clk 0:03:00]} 3. e3 {[%clk 0:03:01]}  g6 {[%clk 0:03:00]} 4. d3 {[%clk 0:03:01]}  Bg7 {[%clk 0:03:01]} 5. Be2 {[%clk 0:03:02]}  O-O {[%clk 0:03:02]} 6. O-O {[%clk 0:03:02]}  b6 {[%clk 0:03:01]} 7. Ne5 {[%clk 0:03:00]}  Bb7 {[%clk 0:03:01]} 8. Qe1 {[%clk 0:03:01]}  c5 {[%clk 0:02:57]} 9. Nd2 {[%clk 0:03:01]}  Nc6 {[%clk 0:02:53]} 10. Qh4 {[%clk 0:03:00]}  Qc7 {[%clk 0:02:46]} 11. Ndf3 {[%clk 0:02:58]}  Nd7 {[%clk 0:02:31]} 12. Nxc6 {[%clk 0:02:59]}  Bxc6 {[%clk 0:02:30]} 13. a4 {[%clk 0:02:44]}  e5 {[%clk 0:02:23]} 14. e4 {[%clk 0:02:29]}  dxe4 {[%clk 0:02:19]} 15. Ng5 {[%clk 0:02:30]}  h6 {[%clk 0:02:12]} 16. Nxe4 {[%clk 0:02:30]}  Qd8 {[%clk 0:01:42]} 17. Qh3 {[%clk 0:02:15]}  f5 {[%clk 0:01:25]} 18. Nc3 {[%clk 0:02:12]}  exf4 {[%clk 0:01:18]} 19. Bxf4 {[%clk 0:02:11]}  g5 {[%clk 0:01:18]} 20. Bd2 {[%clk 0:01:55]}  Qf6 {[%clk 0:00:56]} 21. Rae1 {[%clk 0:01:44]}  Rae8 {[%clk 0:00:56]} 22. Bh5 {[%clk 0:01:44]}  Rxe1 {[%clk 0:00:54]} 23. Rxe1 {[%clk 0:01:44]}  Ne5 {[%clk 0:00:48]} 24. Nb5 {[%clk 0:01:23]}  a6 {[%clk 0:00:43]} 25. Bc3 {[%clk 0:00:53]}  Qe7 {[%clk 0:00:40]} 26. d4 {[%clk 0:00:52]}  cxd4 {[%clk 0:00:30]} 27. Nxd4 {[%clk 0:00:52]}  Bd7 {[%clk 0:00:30]} 28. Qe3 {[%clk 0:00:33]}  f4 {[%clk 0:00:30]} 29. Qe2 {[%clk 0:00:29]}  Qc5 {[%clk 0:00:27]} 30. Kh1 {[%clk 0:00:24]}  b5 {[%clk 0:00:28]} 31. axb5 {[%clk 0:00:16]}  axb5 {[%clk 0:00:28]} 32. Nb3 {[%clk 0:00:15]}  f3 {[%clk 0:00:20]} 33. gxf3 {[%clk 0:00:10]}  Qd5 {[%clk 0:00:10]} 34. Bxe5 {[%clk 0:00:09]}  Bc6 {[%clk 0:00:02]} 35. Bxg7 {[%clk 0:00:08]}  Kxg7 {[%clk 0:00:03]} 36. Qe5+ {[%clk 0:00:07]}  Kg8 {[%clk 0:00:04]} 37. Qxd5+ {[%clk 0:00:08]}  Bxd5 {[%clk 0:00:04]} 38. Kg2 {[%clk 0:00:06]}  Rc8 {[%clk 0:00:04]} 39. Nd4 {[%clk 0:00:05]}  b4 {[%clk 0:00:05]} 40. Re5 {[%clk 0:00:05]}  Ba2 {[%clk 0:00:04]} 41. Rb5 {[%clk 0:00:04]}  Rc4 {[%clk 0:00:04]} 42. Nf5 {[%clk 0:00:02]}  Rxc2+ {[%clk 0:00:04]} 43. Kg3 {[%clk 0:00:03]}  Rxb2 {[%clk 0:00:05]} 44. Bg6 {[%clk 0:00:03]}  Kf8 {[%clk 0:00:05]} 45. Rb8# {[%clk 0:00:03]} 1-0


[Site "https://www.chess.com"]